Cogmind - Beta 13 @@@ ROGUE MODE // 2024.06.07 @ 13:31:10 Player: Minty Result: Destroyed by G-47 Trooper with Particle Gun Performance ------------- Evolutions (2) 1000 Regions Visited (3) 600 Robots Destroyed (62) 310 Value Destroyed (1776) 1776 Prototype IDs (6) 120 Alien Tech Used (0) 0 Bonus (11) 11 TOTAL SCORE: 3817 Bonus ------- High Alert Combat Kills 11 Cogmind --------- Core Integrity 0/550 Matter 300/300 Energy 68/100 System Corruption 1% Temperature Cool (25) Movement Core (400) Ox7 Location -8/Materials Parts ------- > --- POWER (1) -------- (None) > --- PROPULSION (2) --- (None) > --- UTILITY (5) ------ Large Storage Unit > --- WEAPON (3) ------- Heavy Hammer > --- INVENTORY (15) --- Cooling System Machine Analyzer Terrain Scan Processor Hacking Suite Recalibrator Spread Laser Pulse Rifle Pulse Rifle Improved Light Cannon Improved Light Cannon Improved Light Cannon Grenade Launcher Peak State ------------ > --- POWER ------------ Nuclear Core > --- PROPULSION ------- Light Treads Armored Treads > --- UTILITY ---------- Improved Heat Sink Improved Heat Sink Large Storage Unit Sensor Array Utility Shielding > --- WEAPON ----------- Advanced Beam Cannon Advanced Beam Cannon Advanced Beam Cannon > --- INVENTORY -------- Wheel Wheel Cooling System Machine Analyzer Terrain Scan Processor Hacking Suite Recalibrator Spread Laser Pulse Rifle Pulse Rifle Improved Light Cannon Improved Light Cannon Improved Light Cannon Grenade Launcher Heavy Hammer [Rating: 28] Favorites ----------- Power Ion Engine Engine Ion Engine Power Core Nuclear Core Propulsion Light Treads Treads Light Treads Leg Aluminum Leg Wheel Wheel Hover Unit Backup Propulsion I Utility Utility Shielding Device Sensor Array Storage Large Storage Unit Processor Terrain Scan Processor Protection Utility Shielding Weapon Advanced Beam Cannon Energy Gun Small Laser Energy Cannon Advanced Beam Cannon Impact Weapon Heavy Hammer Build | -11 -10 -9 -8 ------- Run | Yrd Mat Mat Mat Slots Evolved 4 | . . 2 2 Power . | . . . . Propulsion . | . . . . Utility 3 | . . 2 1 Weapon 1 | . . . 1 Parts Attached 39 | . 7 21 11 Power 4 | . 1 2 1 Engine 3 | . 1 2 . Core 1 | . . . 1 Reactor . | . . . . Propulsion 14 | . 2 8 4 Treads 10 | . . 8 2 Leg . | . . . . Wheel 4 | . 2 . 2 Hover . | . . . . Flight . | . . . . Utility 11 | . 1 6 4 Device 7 | . 1 2 4 Storage 1 | . . 1 . Processor 1 | . . 1 . Hackware . | . . . . Protection 2 | . . 2 . Artifact . | . . . . Weapon 10 | . 3 5 2 Energy Gun 4 | . 1 3 . Energy Cannon 5 | . 2 2 1 Ballistic Gun . | . . . . Ballistic Cannon . | . . . . Launcher . | . . . . Special Weapon . | . . . . Impact Weapon 1 | . . . 1 Slashing Weapon . | . . . . Piercing Weapon . | . . . . Special Melee Weapon . | . . . . Unidentified Prototypes 1 | . . 1 . Parts Lost 18 | . 3 3 12 Power 2 | . . 1 1 Propulsion 6 | . 2 . 4 Utility 6 | . . 2 4 Weapon 4 | . 1 . 3 Highest Loss Streak 11 | . 2 1 11 To Critical Strikes . | . . . . Average Slot Usage (%) 95 | . 85 99 95 Engine 9 | . 14 10 1 Core 1 | . . . 7 Treads 14 | . . 19 17 Leg 3 | . 13 . . Wheel 3 | . 7 2 . Device 16 | . 3 18 26 Storage 11 | . 14 11 9 Processor 1 | . . 2 . Protection 8 | . 3 11 8 Energy Gun 6 | . 22 2 . Energy Cannon 16 | . 4 19 23 Naked Turns . | . . . . Heaviest Build 43 | 10 17 38 43 Greatest Support 40 | 20 20 40 40 Greatest Overweight (x) 2 | . 1 . 2 Average Overweight (x) . | . . . . Largest Inventory Capacity 15 | . 8 15 15 Average Capacity 11 | . 8 12 15 Most Carried 15 | . 8 15 15 Average Carried 10 | . 6 11 14 Final Capacity 15 | 8 8 15 15 Final Carried 15 | 6 8 15 12 Class Distribution -------------------- 44% | Mutant 39% | Scavenger-Mutant 9% | Skirmisher 6% | Scavenger-Skirmisher Dominant Class ---------------- Mutant | -10/Materials Scavenger-Mutant | -9/Materials Skirmisher | -8/Materials Resources | -11 -10 -9 -8 ----------- Run | Yrd Mat Mat Mat Matter Collected 747 | 200 131 331 85 Remotely . | . . . . Salvage Created 2577 | . 620 1474 483 Parts 130 | . 39 82 9 Haulers Intercepted 2 | . . 2 . Recyclers Shooed 4 | . 3 1 . Parts Field Recycled . | . . . . Retrieved Matter . | . . . . Parts Self-Destructed . | . . . . Prevented . | . . . . Kills | -11 -10 -9 -8 ------- Run | Yrd Mat Mat Mat Combat Hostiles Destroyed 44 | . 11 26 7 Guns 13 | . 10 3 . Cannons 26 | . 1 19 6 AOE 4 | . . 4 . Classes Destroyed 12 | . 4 6 2 Worker 4 | . 2 2 . Builder 1 | . . 1 . Hauler 2 | . . 2 . Recycler 6 | . 3 2 1 Mechanic 1 | . . 1 . Operator 1 | . . 1 . Watcher 3 | . . 3 . Swarmer 5 | . 3 2 . Grunt 32 | . 8 20 4 Sentry 4 | . . 4 . Specialist 2 | . . . 2 Heavy 1 | . . . 1 Best Kill Streak 7 | . 7 6 4 Combat Bots Only 5 | . 4 5 4 Max Kills in Single Turn 2 | . 1 2 1 Gunslinging . | . . . . Exploded 2 | . . 2 . Melee . | . . . . Uniques/NPCs Destroyed . | . . . . Combat | -11 -10 -9 -8 -------- Run | Yrd Mat Mat Mat Hostile Shots Fired 322 | . 83 111 128 Missed 75 | . 25 30 20 Damage Taken 3320 | . 601 972 1747 Core 754 | . 106 90 558 Absorbed by Shields . | . . . . Redirected to Shielding 50 | . . 26 24 Core Remaining (%) 78 | 100 57 77 . Volleys Fired 151 | . 52 77 22 Largest 3 | . 2 2 3 Hottest 204 | . 120 136 204 Shots Fired 290 | . 83 155 52 Gun 101 | . 79 22 . Cannon 189 | . 4 133 52 Launcher . | . . . . Special . | . . . . Kinetic . | . . . . Thermal 269 | . 83 134 52 Explosive . | . . . . Electromagnetic 21 | . . 21 . Robot Hit Streak 19 | . 10 19 6 Robot Miss Streak 5 | . 3 5 2 Penetration Max . | . . . . Secondary Targets 2 | . 2 . . Max Gunslinging Chain 1 | . 1 . . Shots Hit Robots 175 | . 51 86 38 Core Hits 89 | . 29 47 13 Critical Kills . | . . . . Critical Parts Destroyed . | . . . . Critical Strikes 1 | . 1 . . Burn 1 | . 1 . . Melee Attacks 6 | . . . 6 Impact 6 | . . . 6 Slashing . | . . . . Piercing . | . . . . Sneak Attacks 1 | . . . 1 Combat Hostiles . | . . . . Follow-up Attacks . | . . . . Damage Inflicted 3729 | . 699 1992 1038 Guns 942 | . 627 315 . Cannons 2150 | . 72 1384 694 Explosions 285 | . . 285 . Melee 342 | . . . 342 Ramming 10 | . . 8 2 Kinetic . | . . . . Thermal 3062 | . 699 1669 694 Explosive . | . . . . Electromagnetic 315 | . . 315 . Impact 342 | . . . 342 Slashing . | . . . . Piercing . | . . . . Highest Corruption 2 | . . 2 1 Average Corruption 1 | . . 2 1 Corruption Purged . | . . . . Corruption Blocked . | . . . . Effects 10 | . . 8 2 Message Errors 2 | . . 2 . Matter Fused 1 | . . 1 . Heat Flow Errors 2 | . . 2 . Energy Discharges 1 | . . . 1 Parts Fused 1 | . . 1 . Data Loss (minor) 2 | . . 1 1 Misfires 1 | . . 1 . Overload Shots . | . . . . Overflow Damage 88 | . . 23 65 Projectiles 23 | . . 23 . Explosions . | . . . . Melee 65 | . . . 65 Knockbacks 2 | . . . 2 Impact 2 | . . . 2 Kinetic . | . . . . Secondary . | . . . . Self-Inflicted Damage 33 | . . 33 . Shots 1 | . . 1 . Rammed 2 | . . 1 1 Targets Rammed 2 | . . 1 1 Kicked . | . . . . Crushed . | . . . . Highest Temperature 484 | . 484 468 199 Average Temperature 134 | . 207 104 84 Received Heat Transfer 1224 | . 213 381 630 Effects 19 | . 15 4 . Shutdowns 7 | . 5 2 . Energy Bleed 7 | . 7 . . Interference 2 | . 2 . . Matter Decay 3 | . 1 2 . Siege Activations . | . . . . Robots Corrupted . | . . . . Combat Hostiles . | . . . . Parts Fried 3 | . . . 3 Impact Corruptions 3 | . . . 3 Robots Melted . | . . . . Combat Hostiles . | . . . . Parts Melted 13 | . 3 3 7 Heat Transferred 6084 | . 1860 2966 1258 Parts Sabotaged . | . . . . Parts Stolen . | . . . . Parts Stripped . | . . . . Power Chain Reactions 3 | . . 3 . Alert | -11 -10 -9 -8 ------- Run | Yrd Mat Mat Mat Peak Influence 423 | . 324 423 378 Initial 178 | . . 70 178 Average 212 | . 183 217 231 Maximum Alert Level 2 | . 1 2 1 Low Security (%) 42 | . 46 46 26 Level 1 55 | . 53 48 73 Level 2 2 | . . 4 . Level 3 . | . . . . Level 4 . | . . . . Level 5 . | . . . . High Security . | . . . . Max Security . | . . . . Squads Dispatched 13 | . 3 3 7 Investigation 5 | . 2 2 1 Extermination . | . . . . Reinforcement 6 | . 1 1 4 Assault 1 | . . . 1 Garrison 1 | . . . 1 Intercept . | . . . . Searches Triggered . | . . . . Construction Impeded . | . . . . Haulers Reinforced . | . . . . Active Scanning Responses . | . . . . Cargo Convoy Interrupts . | . . . . Stealth | -11 -10 -9 -8 --------- Run | Yrd Mat Mat Mat Distress Signals 3 | . . . 3 Communications Jammed . | . . . . Distress Signals . | . . . . Times Spotted 69 | . 19 33 17 Peak Tracking Total 9 | . 6 5 9 Tactical Retreats 4 | . 1 2 1 Traps | -11 -10 -9 -8 ------- Run | Yrd Mat Mat Mat Traps Triggered 2 | . . 1 1 Indirectly . | . . . . Trap Hack Attempts . | . . . . Triggered . | . . . . Disarmed . | . . . . Reprogrammed . | . . . . Reused . | . . . . Traps Extracted . | . . . . Installed . | . . . . Triggered . | . . . . Machines | -11 -10 -9 -8 ---------- Run | Yrd Mat Mat Mat Machines Disabled 3 | . . 2 1 Max in Single Turn 1 | . . 1 1 Garrison Access 1 | . . . 1 Machines Repaired . | . . . . Machines Dismantled . | . . . . Machines Sabotaged . | . . . . Overloaded Fab Kills . | . . . . Hacking | -11 -10 -9 -8 --------- Run | Yrd Mat Mat Mat Machines Accessed 11 | . 5 4 2 Terminals 8 | . 4 3 1 Fabricators . | . . . . Repair Stations 2 | . 1 1 . Recycling Units . | . . . . Scanalyzers 1 | . . . 1 Garrison Access . | . . . . Total Hacks 38 | . 18 12 8 Successful 20 | . 10 4 6 Failed 18 | . 8 8 2 Catastrophic 3 | . 1 2 . Database Lockouts . | . . . . Manual 12 | . 6 5 1 Terminals 29 | . 17 10 2 Fabricators . | . . . . Repair Stations 3 | . 1 2 . Recycling Units . | . . . . Scanalyzers 6 | . . . 6 Garrison Access . | . . . . Terminal Hacks 12 | . 7 4 1 Robot Analysis 1 | . 1 . . Prototype ID Bank 3 | . 2 1 . Emergency Access Points 1 | . . 1 . Alert Level 3 | . 1 1 1 Unreport Threat 1 | . . 1 . Dispatch Records 1 | . 1 . . Security Status 1 | . 1 . . Hauler Manifests 1 | . 1 . . Fabricator Hacks . | . . . . Repair Station Hacks 1 | . 1 . . Refit 1 | . 1 . . Recycling Unit Hacks . | . . . . Scanalyzer 4 | . . . 4 Insert Component 2 | . . . 2 Analyze 2 | . . . 2 Garrison Access Hacks . | . . . . Unauthorized Hacks 3 | . 2 . 1 Terminals 2 | . 2 . . Botnet 2 | . 2 . . Fabricators . | . . . . Repair Stations . | . . . . Recycling Units . | . . . . Scanalyzers 1 | . . . 1 Extract 1 | . . . 1 Garrison Access . | . . . . Data Cores Recovered . | . . . . Used . | . . . . Hacking Detections 9 | . 3 4 2 Full Trace Events 5 | . 2 3 . Feedback Events . | . . . . Feedback Blocked . | . . . . Robot Schematics Acquired . | . . . . Robots Built . | . . . . Authchips . | . . . . Time . | . . . . Total Robot Build Rating . | . . . . Part Schematics Acquired 4 | . . . 4 Parts Built . | . . . . Authchips . | . . . . Time . | . . . . Total Part Build Rating . | . . . . Parts Repaired . | . . . . Time . | . . . . Parts Recycled . | . . . . Recycled Matter . | . . . . Retrieved Matter . | . . . . Retrieved Components . | . . . . Parts Scanalyzed 2 | . . . 2 Part Schematics Acquired 1 | . . . 1 Parts Damaged . | . . . . Bothacking | -11 -10 -9 -8 ------------ Run | Yrd Mat Mat Mat Used RIF Installer . | . . . . Robots Hacked . | . . . . Non-combat . | . . . . Combat . | . . . . Robot Hacks Applied . | . . . . Relay Couplers Released 1 | . . . 1 Machine Destruction 1 | . . . 1 Fabnet Peak Effective % . | . . . . Robots Rewired . | . . . . Allies Hacked . | . . . . Hacks Repelled . | . . . . Allies | -11 -10 -9 -8 -------- Run | Yrd Mat Mat Mat Total Allies . | . . . . Largest Group . | . . . . Highest-Rated Group . | . . . . Highest-Rated Ally . | . . . . Total Orders . | . . . . Ally Attacks . | . . . . Total Damage . | . . . . Kills . | . . . . Allies Corrupted . | . . . . Allies Melted . | . . . . Intel | -11 -10 -9 -8 ------- Run | Yrd Mat Mat Mat Robot Analysis Total 1 | . 1 . . Derelict Logs Recovered . | . . . . Drone Launches . | . . . . Drone Recoveries . | . . . . Exploration | -11 -10 -9 -8 ------------- Run | Yrd Mat Mat Mat Turns Passed 2075 | . 506 1141 428 Spaces Moved 942 | 1 252 552 137 Core . | . . . . Treads 602 | . . 469 133 Legs 137 | 1 136 . . Wheels 203 | . 116 83 4 Hover . | . . . . Flight . | . . . . Fastest Speed 80 | 120 80 80 110 Average Speed 155 | 120 129 147 234 Slowest Speed 250 | 120 190 160 250 Overloaded Moves . | . . . . Propulsion Burnouts . | . . . . Robots Hopped . | . . . . Cave-ins Triggered . | . . . . Exploration Rate (%) 24 | 2 36 46 14 Regions Visited 3 Branch Regions . Pre-discovered Areas . | . . . . Known Exits Taken . | . . . . Unknown Exits Taken 3 | 1 1 1 . Scrap Searched . | . . . . Spaces Dug . | . . . . Terrain Destroyed 9 | . . 9 . Melee . | . . . . Projectile . | . . . . AOE 9 | . . 9 . Terrain Rammed . | . . . . Walls Destroyed . | . . . . Machines Disabled . | . . . . Actions | -11 -10 -9 -8 --------- Run | Yrd Mat Mat Mat Total 1266 | . 347 731 188 Wait 68 | . 31 37 . Move 939 | . 251 551 137 Hop . | . . . . Pick Up 28 | . 3 21 4 Fast Attach 11 | . 3 7 1 Attach 11 | . 1 5 5 Detach 2 | . 1 1 . Swap 17 | . 3 9 5 Drop 31 | . 2 22 7 Fire 151 | . 52 77 22 Melee 6 | . . . 6 Ram . | . . . . Kick . | . . . . Crush 2 | . . 1 1 Escape Stasis . | . . . . Rewire . | . . . . Trap . | . . . . Miscellaneous . | . . . . Route ------- -11/Scrapyard -10/Materials -9/Materials -8/Materials History --------- Turn | Location | Event 1 | -11/Scrapyard | Discovered new exit (range 0) 1 | -11/Scrapyard | Entered Materials 169 | -10/Materials | Discovered new exit (range 5) 302 | -10/Materials | Build established: Mutant 507 | -10/Materials | Entered another Materials area 507 | -9/Materials | Evolved 2 slots: Utility x2 1155 | -9/Materials | Discovered new exit (range 5) 1168 | -9/Materials | Build established: Scavenger-Mutant 1648 | -9/Materials | Entered another Materials area 1648 | -8/Materials | Evolved 2 slots: Utility x1, Weapon x1 1697 | -8/Materials | Garrison activated, responded to threat 2057 | -8/Materials | Core integrity fell below 50% 2070 | -8/Materials | Core integrity fell below 20% 2076 | -8/Materials | Destroyed by G-47 Trooper with Particle Gun Last Messages --------------- 02065_ Wheel destroyed. 02067_ Adv. Beam Cannon destroyed. 02068_ R-06 Scavenger collects Aluminum Leg. 02071_ Critical hit (Burn: +37). 02071_ Destroyed Lgt. Nuclear Core. 02071_ G-47 Trooper system corrupted by crushing effect. 02072_ G-47 Trooper system terminally corrupted. 02072_ Imp. Heat Sink destroyed. 02072_ Critical hit (Burn: +37). 02072_ Arm. Treads destroyed. 02073_ Imp. Heat Sink destroyed. 02074_ Sneak attack on R-06 Scavenger. 02074_ Destroyed Com. Wheel. 02074_ R-06 Scavenger system corrupted by crushing effect. 02074_ Lgt. Ion Engine fried. 02074_ Tractor Beam fried. 02074_ Com. Wheel fried. 02074_ R-06 Scavenger destroyed. 02075_ Critical hit (Burn: +37). 02076_ S-10 Pest destroyed. Map ----- +----------------------------------------------------+ | ????????????????????????????????????????????? | | ????????????????????????????????????????????? | | ????????????????????????????????????????????? | | ????????????????????????????????????????????? | | ????????????????????????????????????????????? | | ????????????????????????????????????????????? | | ????????????????????????????????????????????? | | ????????????????????????????????????????????? | | ????????????????????????????????????????????? | | ????????????????????????????????????????????? | | ????????????###+##??????????????????????????? | | ???????????# ????? ???????????????????? | | ???????????# #??? #?????????????????? | | ???????????# #??? #?????????????????? | | ???????????+ #??? w#?????????????????? | | ???????????# ???? #?????????????????? | | ???????????? ??? #?????????????????? | | ????????????? ???? #?????????????????? | | ?????????????# #???? #?????????????????? | | ?????????????# #???? #?????????????????? | | ?????????????# #??? +?????????????????? | | ?????????????# #??? t #?????????????????? | | ???????????### ###? #?????????????????? | | ???????????#% Y=##! #?????????????????? | | ???######### Y%[%%[ #?????????????????? | | ??## % % % % s @ #?????????????????? | | ??#" % % % gs % #?????????????????? | | ??#" gr #?????????????????? | | ?# # ####; #?????????????????? | | ???# #??## ] ###+####?????????????????? | | ???# #???#########?? ???????????????????? | | ???# #??????????????? ?????????????????? | | ???# #??????????????? ????????????????? | | ???# #????????????????""?" ???????????????? | | ??## #########????????"""?????????????????? | | ??# # [ [#????????????????????????????? | | ??# # #????????????????????????????? | | ??# + """ #????????????????????????????? | | ??# # """ #????????????????????????????? | | ??# # """ #????????????????????????????? | | ??### ### #????????????????????????????? | | ????# #################?????????????????????? | | ????# ## # #?????????????????????? | | ????# ## # #?????????????????????? | | ????#%## """ # #?????????????????????? | | ????# ## """ # #?????????????????????? | | ????# ## "" """ # #?????????????????????? | | ????# ## S"" """ # ##+########??????????????? | | ????# ## "" """ # + #??????????????? | | ????#%## # # #??????????????? | +----------------------------------------------------+ Best States ------------- Heat Dissipation 59 Coolant Potential 50 Energy Generation 14 Energy Capacity 265 Matter Stores 300 Matter Capacity 300 Sight Range 16 Robot Scan Range 14 Terrain Scan Density 85 Armor Coverage 80 Utility Shielding 33 Evasion (%) 50 Recoil Reduction 2 Item Schematics ----------------- Cooling System | -8/Materials | Scanalyzed Recoil Stabilizer | -8/Materials | Extracted Imp. Ion Engine | -8/Materials | Extracted Particle Charger | -8/Materials | Extracted Robot Schematics ------------------ None Fabricated ------------ Nothing Alien Tech Used ----------------- None Achievements -------------- None Challenges ------------ None Game ------ Seed PointyPortableThermoblaster Manual? 0 Play Time 00:22:57 Cumulative 752.0 hours Start 2024.06.07 @ 12:21:32 End 2024.06.07 @ 13:31:10 Sessions 3 Manual Loads 0 Difficulty Rogue Special Mode None Game No. 834 Rogue 559 Adventurer 123 Explorer 152 Win Type - Total 27 Types 21/0/4/1/0/0/0/1/0 Lore% 84 Gallery% 92 Achievement% 76 Wizard Run 0 Options --------- Layout 0 ASCII 0 Keyboard 1 Movement Numpad Keybinds 0 Fullscreen 2 Font 18/Terminus Map View 76x50 Zoom Use 0% Tactical HUD 1 Map Filters NONE Filters SHIFT_HUE(360) Steam 1 RUN: 714a7224-aad5-4f94-8c00-2d8607bc370c